[Event "8th Brazilian Open SESC Caioba 2024"]
[Site "Caioba"]
[Date "2024.06.24"]
[Round "2.6"]
[White "Di Berardino, Diego Rafael"]
[Black "Dos Santos Junior, Haroldo Cunha"]
[Result "1-0"]
[ECO "D35"]
[WhiteElo "2473"]
[BlackElo "2052"]
[Annotator "TA"]
[PlyCount "95"]
[EventDate "2024.06.15"]
[EventCountry "BRA"]
[SourceTitle "playchess.com"]
[Source "ChessBase"]
[SourceQuality "1"]
[TimeControl "5400+30"]

{[%evp 15,95,17,52,47,41,40,36,33,56,61,54,36,40,42,101,81,107,69,58,44,46,39,45,20,28,0,36,27,29,-16,-13,-51,8,7,15,10,22,19,42,7,11,20,8,11,16,0,21,0,0,0,0,0,0,0,0,0,0,0,0,0,0,0,0,0,0,0,0,0,0,0,0,0,0,0,0,0,20,0,0,0,1831,1656]} 1. d4 {[%emt 0:00:03]} d5 {[%emt 0:00:21]} 2. c4 {[%emt 0:00:04]} e6 {[%emt 0:00:09]} 3. Nc3 {[%emt 0:00:05]} Nf6 {[%emt 0:00:09]} 4. cxd5 {[%emt 0:00:46]} exd5 {[%emt 0:00:10]} 5. Bg5 {[%emt 0:00:05]} Be7 {[%emt 0:02:32]} 6. e3 {[%emt 0:00:05]} h6 {[%emt 0:02:02]} 7. Bh4 {[%emt 0:01:41]} O-O {[%emt 0:02:11]} 8. Bd3 {[%emt 0:00:05]} c5 {[%emt 0:02:04]} 9. dxc5 {[%emt 0:01:33]} Nbd7 {[%emt 0:02:48]} 10. Nge2 {[%emt 0:02:10]} Nxc5 {[%emt 0:03:28]} 11. O-O {[%emt 0:01:25] White is slightly better.} Bg4 {[%emt 0:04:14]} 12. h3 {[%emt 0:05:58]} Be6 {[%emt 0:02:00]} 13. Nf4 {[%emt 0:02:03]} g5 {[%emt 0:04:13]} 14. Nxe6 {[%emt 0:00:09]} Nxe6 {[%emt 0:01:15]} (14... fxe6 $14 15. Bg3 Bd6) 15. Bg3 $16 {[%emt 0:00:04]} Bd6 {[%emt 0:00:16]} 16. Bxd6 {[%emt 0:02:24]} Qxd6 {[%emt 0:01:18]} 17. Qf3 {[%emt 0:00:50]} Qe5 {[%emt 0:02:37]} 18. Rad1 {[%emt 0:11:57]} Rad8 {[%emt 0:01:31]} 19. Rfe1 {[%emt 0:05:38]} Rfe8 {[%emt 0:01:44][%cal Bf8e8,Be8e7,Be7c7][%mdl 32]} 20. Kh1 {[%emt 0:12:00]} Kg7 {[%emt 0:02:11]} 21. Ne2 {[%emt 0:21:28]} Ne4 {[%emt 0:07:07]} 22. Bb5 {[%emt 0:05:33]} Re7 {[%emt 0:03:41][%cal Od8d6]} 23. Nd4 {[%emt 0:00:20]} Nd6 {[%emt 0:12:38] Against Nf5+} (23... Nxd4 $15 24. exd4 Qc7) 24. Nxe6+ $11 {[%emt 0:08:16]} fxe6 {[%emt 0:01:00]} 25. Qe2 {[%emt 0:00:03]} Rc7 {[%emt 0:03:45]} 26. Bd3 {[%emt 0:00:06][%cal Of2f4]} Ne4 {[%emt 0:00:45]} (26... Rf8 {keeps more tension.} 27. f4 gxf4 28. Qg4+ Qg5) 27. Bxe4 {[%emt 0:00:17]} (27. f4 $5 Qf5 (27... gxf4 28. Qg4+ Kf7 29. Rf1 $16) (27... Ng3+ $2 28. Kh2 $18) 28. Kg1 $16) 27... Qxe4 {[%emt 0:00:08]} 28. Rd4 {[%emt 0:01:05]} Qc2 {[%emt 0:01:35]} 29. Rd2 {[%emt 0:00:35]} Qc4 {[%emt 0:00:23]} 30. Qf3 {[%emt 0:00:13]} Qb4 {[%emt 0:02:36]} 31. Red1 {[%emt 0:00:46]} Rdc8 {[%emt 0:02:28]} 32. a3 {[%emt 0:01:38]} Qf8 {[%emt 0:01:22]} 33. Qg4 {[%emt 0:00:57]} Qf6 {[%emt 0:02:41]} 34. Qb4 {[%emt 0:05:06]} b6 {[%emt 0:00:49]} 35. Qa4 {[%emt 0:00:07]} Qf7 {[%emt 0:01:17]} 36. e4 {[%emt 0:03:38][%cal Re4d5]} Rc4 {[%emt 0:01:23]} 37. Qa6 {[%emt 0:00:03]} d4 {[%emt 0:01:15]} 38. e5 {[%emt 0:06:41]} (38. Rxd4 $2 {perishes.} Rxd4 39. Rg1 (39. Rxd4 {gets mated.} Rc1+) 39... Rc2 $19) 38... R8c7 {[%emt 0:08:27]} 39. b3 {[%emt 0:00:18]} Rc1 {[%emt 0:05:17]} 40. Qe2 {[%emt 0:00:18]} Qf4 {[%emt 0:01:53]} 41. g3 {[%emt 0:01:57]} Qf5 {[%emt 0:01:07]} 42. Rxd4 {[%emt 0:01:20]} Rxd1+ {[%emt 0:04:33]} 43. Rxd1 {[%emt 0:00:10]} Qxh3+ {[%emt 0:00:59] KQR-KQR} 44. Kg1 {[%emt 0:00:03]} Qf5 {[%emt 0:00:14]} 45. Rd3 {[%emt 0:01:41]} Kg6 {[%emt 0:01:36]} 46. Kg2 {[%emt 0:00:28] Threatens to win with Rf3.} Rc5 {[%emt 0:01:20]} 47. Re3 {[%emt 0:01:03]} Rc2 $2 {[%emt 0:02:19][%mdl 8192] [#]} (47... h5 $11) 48. g4 $1 {[%emt 0:01:15] Weighted Error Value: White=0.09 (flawless) /Black=0.11 (very precise) .  Loses game:     	---       	Black=1      Mistake:       	---       	Black=2      Inaccurate:     	White=5     	Black=2      OK:         	White=17    	Black=15     Best:        	White=2     	Black=1      Strong:       	White=1     	---} 1-0

[Event "8th Brazilian Open SESC Caioba 2024"]
[Site "Caioba"]
[Date "2024.06.24"]
[Round "2.7"]
[White "Iurk, Jonel Nazareno"]
[Black "Santiago, Yago De Moura"]
[Result "0-1"]
[ECO "A81"]
[WhiteElo "2044"]
[BlackElo "2462"]
[Annotator "TA"]
[PlyCount "110"]
[EventDate "2024.06.15"]
[EventCountry "BRA"]
[SourceTitle "playchess.com"]
[Source "ChessBase"]
[SourceQuality "1"]
[TimeControl "5400+30"]

{[%evp 14,110,31,35,29,24,27,21,43,29,21,-8,33,10,58,59,74,57,78,29,36,33,35,19,13,0,6,0,0,0,0,-8,0,0,0,0,0,0,0,0,0,0,0,0,0,-8,0,-23,0,-45,-43,-95,-81,-105,-11,-11,-8,-8,79,47,55,0,0,0,0,0,0,-331,-315,-266,-50,-87,-125,-125,-125,-151,-151,-364,-344,-5852,-8533,-29948,-29957,-1682,-29962,-29961,-12810,-1863,-125,-125,-125,-125,-125,-125,-125,-125,-125,-125,-125]} 1. d4 {[%emt 1:31:00]} e6 {[%emt 0:00:15]} 2. Nf3 {[%emt 0:00:00]} f5 {[%emt 0:00:08]} 3. g3 {[%emt 0:00:00]} Nf6 {[%emt 0:00:07]} 4. Bg2 {[%emt 0:00:00]} d5 {[%emt 0:00:11]} 5. O-O {[%emt 0:00:00]} Ne4 {[%emt 0:00:10]} 6. c4 {[%emt 0:00:00] A81: Dutch Defence: 2 g3.} Be7 {[%emt 0:00:08]} 7. Nc3 {[%emt 0:00:00]} c6 {[%emt 0:00:08]} 8. Ne5 {[%emt 0:00:00]} Nd7 {[%emt 0:00:13]} 9. Nxd7 {[%emt 0:00:00]} Bxd7 {[%emt 0:00:10]} 10. Nxe4 {[%emt 0:00:00]} dxe4 {[%emt 0:00:46]} 11. f3 $146 {[%emt 0:00:00]} ({Predecessor:} 11. Bf4 O-O 12. c5 b6 13. b4 Be8 14. f3 Bg6 15. fxe4 fxe4 16. e3 Qd5 17. Qc2 {1-0 Parkhov,Y (2470)-Torngren,G (2275) Rilton Cup 50th 2022 (1)}) 11... exf3 {[%emt 0:00:12]} 12. Bxf3 {[%emt 0:00:00]} O-O {[%emt 0:00:19]} 13. Qb3 {[%emt 0:00:00]} Qc8 {[%emt 0:08:53]} (13... Qb6 $11) 14. Bf4 $14 {[%emt 0:00:00]} Bf6 {[%emt 0:04:48]} 15. e3 {[%emt 0:00:00]} Re8 {[%emt 0:01:13]} 16. Rad1 {[%emt 0:00:00]} (16. c5 $16) 16... e5 $11 {[%emt 0:04:22]} 17. dxe5 {[%emt 0:00:00]} Bxe5 {[%emt 0:00:07]} 18. Rd2 {[%emt 0:00:00]} Bf6 {[%emt 0:01:51]} 19. Rfd1 {[%emt 0:00:00]} Be6 {[%emt 0:00:08]} 20. Qc2 {[%emt 0:00:00]} g5 {[%emt 0:12:11]} 21. Bd6 {[%emt 0:00:00]} Bf7 {[%emt 0:00:07]} 22. e4 {[%emt 0:00:32]} Bg6 {[%emt 0:00:38]} 23. exf5 {[%emt 0:03:19]} Bxf5 {[%emt 0:00:07]} 24. Qb3 {[%emt 0:01:11]} g4 {[%emt 0:02:26]} 25. Bg2 {[%emt 0:01:20]} Bg5 {[%emt 0:00:20]} 26. Bf4 $1 {[%emt 0:01:02]} Bxf4 {[%emt 0:00:13]} 27. gxf4 {[%emt 0:00:08]} Qc7 {[%emt 0:00:45]} 28. c5+ {[%emt 0:01:25]} Qf7 {[%emt 0:01:07]} 29. Qxf7+ {[%emt 0:01:19]} Kxf7 {[%emt 0:00:03]} 30. Kf2 {[%emt 0:00:16]} h5 {[%emt 0:01:26]} 31. Bf1 {[%emt 0:02:51]} Re4 {[%emt 0:01:52]} 32. Rd4 {[%emt 0:00:01]} ({White should play} 32. Kg3 $15) 32... Rae8 $17 {[%emt 0:00:12]} 33. Bc4+ {[%emt 0:00:17]} Kg7 {[%emt 0:00:19]} ({Black should try} 33... Kf6 $17 34. b4 h4) 34. Kg3 $1 $11 {[%emt 0:00:35]} Re3+ {[%emt 0:02:13]} 35. Kh4 {[%emt 0:00:03]} Kh6 {[%emt 0:00:37]} (35... Kf6 $11 36. Rd6+ Be6) 36. Rd6+ $16 {[%emt 0:00:21]} R8e6 $1 {[%emt 0:01:18]} 37. Rxe6+ {[%emt 0:00:49]} (37. R1d3 $1 $14 Rxd6 38. Rxd6+ Bg6 39. Bf1) 37... Bxe6 $11 {[%emt 0:00:04]} 38. Rd3 {[%emt 0:00:03]} Rxd3 {[%emt 0:00:40]} 39. Bxd3 {[%emt 0:00:11]} Bxa2 {[%emt 0:00:07]} 40. h3 $2 {[%emt 0:00:26][%mdl 8192]} (40. Bf5 $1 $11) 40... gxh3 $19 {[%emt 0:00:37]} 41. Kxh3 {[%emt 0:00:01]} Bd5 $2 {[%emt 0:00:14]} (41... b6 $1 $19 42. cxb6 axb6) 42. Kh4 {[%emt 0:00:08] [#]} b6 $1 {[%emt 0:00:34]} 43. cxb6 {[%emt 0:01:35]} axb6 {[%emt 0:00:03]} 44. Be2 {[%emt 0:01:06]} Bf7 {[%emt 0:00:08]} 45. Bd3 $2 {[%emt 0:00:59]} (45. b4 $17 {keeps fighting.}) 45... c5 $19 {[%emt 0:01:18]} 46. f5 $2 {[%emt 0:00:31]} (46. Bb5 Kg6 47. Bd7) 46... c4 $19 {[%emt 0:01:16]} 47. Be2 {[%emt 0:00:45]} b5 {[%emt 0:00:09]} 48. Bd1 {[%emt 0:01:21]} b4 {[%emt 0:00:21]} 49. Be2 {[%emt 0:00:14]} c3 {[%emt 0:00:30]} 50. bxc3 {[%emt 0:00:02] [#]} bxc3 $2 {[%emt 0:00:06]} (50... b3 $1 $19 {is more deadly.} 51. Bd3 b2) 51. Bd1 $17 {[%emt 0:00:10]} Bd5 {[%emt 0:01:40]} 52. Bc2 {[%emt 0:00:24]} Bc4 {[%emt 0:00:17]} 53. Be4 {[%emt 0:01:03]} Bb3 {[%emt 0:00:31]} 54. f6 {[%emt 0:00:16]} Bd5 {[%emt 0:00:48]} 55. Bc2 {[%emt 0:00:10]} (55. Bxd5 c2 56. f7 Kg7 (56... c1=B 57. f8=Q+ Kh7 58. Be4#) 57. Kxh5 c1=Q (57... c1=B 58. f8=R $11) 58. Kg4 Qf1 59. Be6 Qf2 60. Bb3 Qd4+ 61. Kh5 Qe3 62. Bd5 Qe5+ 63. Kg4 Qxd5 64. f8=R Kxf8 65. Kh3 Qg8 66. Kh2 Ke7 67. Kh1 Ke6 68. Kh2 Kf5 69. Kh1 Kf4 70. Kh2 Kf3 71. Kh3 Qh8#) 55... Bf7 {[%emt 0:00:11]} 0-1

[Event "8th Brazilian Open SESC Caioba 2024"]
[Site "Caioba"]
[Date "2024.06.24"]
[Round "2.9"]
[White "Kayser, Gustavo Warmling"]
[Black "Acosta, Pablo Ismael"]
[Result "0-1"]
[ECO "B38"]
[WhiteElo "2027"]
[BlackElo "2449"]
[Annotator "RC"]
[PlyCount "156"]
[EventDate "2024.06.15"]
[EventCountry "BRA"]
[SourceTitle "playchess.com"]
[Source "ChessBase"]
[SourceQuality "1"]
[TimeControl "5400+30"]

1. e4 {[%emt 0:00:05]} c5 {[%emt 0:00:17]} 2. Nf3 {[%emt 0:00:10]} a6 {[%emt 0:00:23]} 3. c4 {[%emt 0:00:27]} g6 {[%emt 0:00:51]} 4. d4 {[%emt 0:00:29]} cxd4 {[%emt 0:00:06]} 5. Nxd4 {[%emt 0:00:09]} Bg7 {[%emt 0:00:23]} 6. Nc3 {[%emt 0:00:28]} Nc6 {[%emt 0:04:29]} 7. Be3 {[%emt 0:00:31]} d6 {[%emt 0:00:17]} 8. Be2 {[%emt 0:00:20]} Nf6 {[%emt 0:00:09]} 9. O-O {[%emt 0:00:15]} O-O {[%emt 0:00:35]} 10. Rc1 {[%emt 0:01:30]} Bd7 {[%emt 0:02:19]} 11. Qd2 {[%emt 0:00:36]} Ng4 {[%emt 0:06:43]} 12. Bxg4 {[%emt 0:05:25]} Bxg4 {[%emt 0:00:06]} 13. Nxc6 {[%emt 0:00:26]} bxc6 {[%emt 0:00:25]} 14. Bd4 {[%emt 0:00:16]} Be6 {[%emt 0:10:51]} 15. Bxg7 {[%emt 0:13:56]} Kxg7 {[%emt 0:00:59]} 16. Qd4+ {[%emt 0:03:38]} f6 {[%emt 0:00:37]} 17. c5 {[%emt 0:00:58]} Rb8 {[%emt 0:05:25]} 18. b3 {[%emt 0:01:14]} a5 {[%emt 0:02:51]} 19. cxd6 {[%emt 0:04:20]} Qxd6 {[%emt 0:01:31]} 20. Rfd1 {[%emt 0:09:41]} Rfd8 {[%emt 0:02:32]} 21. Qe3 {[%emt 0:05:45]} Qa3 {[%emt 0:02:41]} 22. h3 {[%emt 0:01:10]} Qb4 {[%emt 0:12:47]} 23. Na4 {[%emt 0:11:42]} Rxd1+ {[%emt 0:04:11]} 24. Rxd1 {[%emt 0:01:06]} Rb5 {[%emt 0:00:05]} 25. Rc1 {[%emt 0:02:16]} Qd6 {[%emt 0:02:17]} 26. Nc5 {[%emt 0:09:17]} Bf7 {[%emt 0:01:04]} 27. Qc3 {[%emt 0:00:48]} h5 {[%emt 0:01:34]} 28. Na4 {[%emt 0:02:59]} Be8 {[%emt 0:04:18]} 29. Rc2 {[%emt 0:02:50]} Qd1+ {[%emt 0:04:54]} 30. Kh2 {[%emt 0:00:07]} h4 {[%emt 0:02:04]} 31. Qd2 {[%emt 0:00:51]} Qxd2 {[%emt 0:08:11]} 32. Rxd2 {[%emt 0:00:07]} Rb4 {[%emt 0:00:02]} 33. f3 {[%emt 0:01:23]} Rb5 {[%emt 0:02:22]} 34. Rc2 {[%emt 0:01:44]} Kf7 {[%emt 0:03:16]} 35. Rc4 {[%emt 0:02:45]} e5 {[%emt 0:01:29]} 36. Nc3 {[%emt 0:00:26]} Rb8 {[%emt 0:00:04]} 37. Rc5 {[%emt 0:00:08]} Ra8 {[%emt 0:00:05]} 38. Kg1 {[%emt 0:00:23]} Ke7 {[%emt 0:00:05]} 39. Kf2 {[%emt 0:00:23]} Kd6 {[%emt 0:00:24]} 40. Na4 {[%emt 0:00:17]} Bd7 {[%emt 0:00:56]} 41. Ke3 {[%emt 0:00:28]} f5 {[%emt 0:00:53]} 42. Rc2 {[%emt 0:19:41]} Rf8 {[%emt 0:02:31]} 43. Rd2+ {[%emt 0:00:00]} Kc7 {[%emt 0:01:36]} 44. Nc5 {[%emt 0:00:00]} Bc8 {[%emt 0:00:07]} 45. Nd3 {[%emt 0:00:00]} Re8 {[%emt 0:00:35]} 46. Rc2 {[%emt 0:00:00]} Ba6 {[%emt 0:02:01]} 47. Nc5 {[%emt 0:00:00]} Bc8 {[%emt 0:00:19]} 48. Nd3 {[%emt 0:00:00]} Kb6 {[%emt 0:01:44]} 49. Rc3 {[%emt 0:00:00]} Ba6 {[%emt 0:02:35]} 50. a3 {[%emt 0:00:00]} f4+ {[%emt 0:01:40]} 51. Kd2 {[%emt 0:00:00]} Bb5 {[%emt 0:01:25]} 52. Kc2 {[%emt 0:00:00]} Re7 {[%emt 0:01:17]} 53. Kc1 {[%emt 0:00:00]} Kc7 {[%emt 0:01:34]} 54. Kc2 {[%emt 0:00:00]} Kd6 {[%emt 0:00:37]} 55. a4 {[%emt 0:00:00]} Ba6 {[%emt 0:01:11]} 56. Kc1 {[%emt 0:00:00]} Rc7 {[%emt 0:00:55]} 57. Kd1 {[%emt 0:00:11]} c5 {[%emt 0:00:23]} 58. Nb2 {[%emt 0:00:18]} Rb7 {[%emt 0:01:59]} 59. Nd3 {[%emt 0:01:26]} c4 {[%emt 0:00:47]} 60. bxc4 {[%emt 0:00:39]} Rb1+ {[%emt 0:00:04]} 61. Kd2 {[%emt 0:00:34]} Rg1 {[%emt 0:01:18]} 62. c5+ {[%emt 0:01:30]} Kc7 {[%emt 0:00:02]} 63. Nxe5 {[%emt 0:01:49]} Rxg2+ {[%emt 0:00:04]} 64. Kc1 {[%emt 0:00:09]} Bc8 {[%emt 0:00:49]} 65. Rd3 {[%emt 0:02:06]} Bxh3 {[%emt 0:00:53]} 66. Rd6 {[%emt 0:00:10]} Bc8 {[%emt 0:00:40]} 67. Rc6+ {[%emt 0:00:55]} Kb8 {[%emt 0:00:22]} 68. Rb6+ {[%emt 0:00:24]} Kc7 {[%emt 0:00:29]} 69. Rc6+ {[%emt 0:00:10]} Kb7 {[%emt 0:00:29]} 70. Rb6+ {[%emt 0:00:09]} Ka8 {[%emt 0:00:08]} 71. Nc6 {[%emt 0:00:46]} Bb7 {[%emt 0:00:22]} 72. Nxa5 {[%emt 0:00:17]} h3 {[%emt 0:00:36]} 73. c6 {[%emt 0:00:15]} Bc8 {[%emt 0:00:24]} 74. c7 {[%emt 0:00:39]} h2 {[%emt 0:00:50]} 75. Rb8+ {[%emt 0:00:08]} Ka7 {[%emt 0:00:02]} 76. Nc6+ {[%emt 0:00:11]} Ka6 {[%emt 0:00:04]} 77. Nb4+ {[%emt 0:00:46]} Ka5 {[%emt 0:00:21]} 78. Nc6+ {[%emt 0:00:18]} Kxa4 {[%emt 0:00:28]} 0-1

[Event "8th Brazilian Open SESC Caioba 2024"]
[Site "Caioba"]
[Date "2024.06.24"]
[Round "2.10"]
[White "Cubas, Jose Fernando"]
[Black "Nunes Jr, Sidney"]
[Result "1-0"]
[ECO "B36"]
[WhiteElo "2417"]
[BlackElo "2028"]
[Annotator "RC"]
[PlyCount "69"]
[EventDate "2024.06.15"]
[EventCountry "BRA"]
[SourceTitle "playchess.com"]
[Source "ChessBase"]
[SourceQuality "1"]
[TimeControl "5400+30"]

1. e4 {[%emt 0:00:04]} c5 {[%emt 0:00:11]} 2. Nf3 {[%emt 0:00:21]} Nc6 {[%emt 0:00:17]} 3. d4 {[%emt 0:00:17]} cxd4 {[%emt 0:00:11]} 4. Nxd4 {[%emt 0:00:04]} g6 {[%emt 0:00:13]} 5. c4 {[%emt 0:00:47]} Nf6 {[%emt 0:00:47]} 6. Nc3 {[%emt 0:00:06]} Nxd4 {[%emt 0:01:53]} 7. Qxd4 {[%emt 0:00:09]} d6 {[%emt 0:00:08]} 8. Be2 {[%emt 0:00:21]} Bg7 {[%emt 0:00:09]} 9. Be3 {[%emt 0:00:06]} O-O {[%emt 0:00:09]} 10. Qd2 {[%emt 0:00:20]} Bd7 {[%emt 0:01:38]} 11. O-O {[%emt 0:02:33]} a6 {[%emt 0:00:48]} 12. f3 {[%emt 0:09:31]} Bc6 {[%emt 0:24:43]} 13. b4 {[%emt 0:03:10]} b6 {[%emt 0:03:05]} 14. Rab1 {[%emt 0:13:33]} Nd7 {[%emt 0:05:24]} 15. Rfc1 {[%emt 0:03:25]} a5 {[%emt 0:08:08]} 16. a3 {[%emt 0:00:45]} axb4 {[%emt 0:03:15]} 17. axb4 {[%emt 0:00:03]} Ra3 {[%emt 0:02:49]} 18. Bd4 {[%emt 0:03:11]} f5 {[%emt 0:17:43]} 19. Bxg7 {[%emt 0:01:08]} Kxg7 {[%emt 0:00:04]} 20. Nb5 {[%emt 0:01:52]} Bxb5 {[%emt 0:04:51]} 21. Qb2+ {[%emt 0:01:21]} Rf6 {[%emt 0:00:42]} 22. Qxa3 {[%emt 0:00:21]} Bc6 {[%emt 0:00:05]} 23. exf5 {[%emt 0:58:32]} gxf5 {[%emt 0:00:50]} 24. Qa7 {[%emt 0:00:00]} Ne5 {[%emt 0:01:47]} 25. c5 {[%emt 0:00:00]} dxc5 {[%emt 0:03:59]} 26. Rd1 {[%emt 0:00:00]} Qe8 {[%emt 0:01:28]} 27. b5 {[%emt 0:00:00]} Ba8 {[%emt 0:05:10]} 28. Ra1 {[%emt 0:00:00]} Rf8 {[%emt 0:02:15]} 29. Qxb6 {[%emt 0:00:00]} Qh5 {[%emt 0:00:47]} 30. Qxc5 {[%emt 0:00:00]} f4 {[%emt 0:00:18]} 31. Qxe7+ {[%emt 0:00:00]} Rf7 {[%emt 0:00:28]} 32. Qe8 {[%emt 0:00:00]} Bb7 {[%emt 0:03:11]} 33. Rd8 {[%emt 0:00:00]} Kh6 {[%emt 0:05:05]} 34. Rad1 {[%emt 0:00:00]} Bxf3 {[%emt 0:04:03]} 35. R1d6+ {[%emt 0:00:00]} 1-0

[Event "8th Brazilian Open SESC Caioba 2024"]
[Site "Caioba"]
[Date "2024.06.24"]
[Round "2.11"]
[White "De Souza, Felipe Guimaraes"]
[Black "Sunye Neto, Jaime"]
[Result "0-1"]
[ECO "B40"]
[WhiteElo "2022"]
[BlackElo "2398"]
[Annotator "RC"]
[PlyCount "49"]
[EventDate "2024.06.15"]
[EventCountry "BRA"]
[SourceTitle "playchess.com"]
[Source "ChessBase"]
[SourceQuality "1"]
[TimeControl "5400+30"]

1. e4 {[%emt 0:02:29]} c5 {[%emt 0:00:09]} 2. Nf3 {[%emt 0:00:29]} e6 {[%emt 0:00:56]} 3. b3 {[%emt 0:00:50]} a6 {[%emt 0:02:34]} 4. Bb2 {[%emt 0:02:02]} Nc6 {[%emt 0:00:09]} 5. c4 {[%emt 0:01:03]} Nf6 {[%emt 0:05:20]} 6. e5 {[%emt 0:10:46]} Ng4 {[%emt 0:01:36]} 7. g3 {[%emt 0:03:20]} Nh6 {[%emt 0:17:21]} 8. Bd3 {[%emt 0:23:28]} d5 {[%emt 0:07:37]} 9. exd6 {[%emt 0:02:06]} f6 {[%emt 0:05:39]} 10. Nc3 {[%emt 0:01:36]} Bxd6 {[%emt 0:01:45]} 11. Qe2 {[%emt 0:07:29]} O-O {[%emt 0:04:08]} 12. O-O-O {[%emt 0:06:33]} f5 {[%emt 0:02:11]} 13. h3 {[%emt 0:06:43]} e5 {[%emt 0:02:51]} 14. Bb1 {[%emt 0:01:20]} e4 {[%emt 0:02:56]} 15. Ng1 {[%emt 0:09:05]} Nd4 {[%emt 0:02:11]} 16. Qe3 {[%emt 0:01:01]} Re8 {[%emt 0:07:01]} 17. Nge2 {[%emt 0:02:43]} Be5 {[%emt 0:03:43]} 18. d3 {[%emt 0:00:19]} f4 {[%emt 0:14:17]} 19. Nxf4 {[%emt 0:04:19]} Nhf5 {[%emt 0:00:35]} 20. Qxe4 {[%emt 0:03:53]} Bxf4+ {[%emt 0:00:31]} 21. Qxf4 {[%emt 0:00:31]} g5 {[%emt 0:00:12]} 22. Qg4 {[%emt 0:00:10]} Ng7 {[%emt 0:17:48]} 23. Qe4 {[%emt 0:09:45]} Ngf5 {[%emt 0:00:30]} 24. Qe3 Nf3 {[%emt 0:00:30]} 25. Qd2 {[%emt 0:01:00]} 0-1

[Event "8th Brazilian Open SESC Caioba 2024"]
[Site "Caioba"]
[Date "2024.06.24"]
[Round "2.12"]
[White "Rodriguez Vila, Andres"]
[Black "De Andrade, Osvaldo Cezar G."]
[Result "1-0"]
[ECO "C54"]
[WhiteElo "2396"]
[BlackElo "2026"]
[Annotator "RC"]
[PlyCount "111"]
[EventDate "2024.06.15"]
[EventCountry "BRA"]
[SourceTitle "playchess.com"]
[Source "ChessBase"]
[SourceQuality "1"]
[TimeControl "5400+30"]

1. e4 {[%emt 0:00:05]} e5 {[%emt 0:01:17]} 2. Bc4 {[%emt 0:00:16]} Nf6 {[%emt 0:00:35]} 3. d3 {[%emt 0:00:04]} Nc6 {[%emt 0:00:24]} 4. Nf3 {[%emt 0:00:25]} Bc5 {[%emt 0:00:20]} 5. O-O {[%emt 0:00:09]} d6 {[%emt 0:00:12]} 6. c3 {[%emt 0:00:12]} Bb6 {[%emt 0:00:09]} 7. a4 {[%emt 0:00:11]} a6 {[%emt 0:00:12]} 8. Re1 {[%emt 0:02:20]} h6 {[%emt 0:00:26]} 9. Nbd2 {[%emt 0:00:16]} Ne7 {[%emt 0:01:25]} 10. a5 {[%emt 0:00:21]} Ba7 {[%emt 0:00:03]} 11. Nf1 {[%emt 0:00:09]} Ng6 {[%emt 0:00:32]} 12. d4 {[%emt 0:01:47]} O-O {[%emt 0:00:28]} 13. Ng3 {[%emt 0:04:57]} Bg4 {[%emt 0:11:20]} 14. d5 {[%emt 0:00:46]} Nh5 {[%emt 0:09:51]} 15. h3 {[%emt 0:05:34]} Bxf3 {[%emt 0:02:03]} 16. Qxf3 {[%emt 0:00:05]} Nxg3 {[%emt 0:00:06]} 17. Qxg3 {[%emt 0:00:05]} Qh4 {[%emt 0:00:12]} 18. Be3 {[%emt 0:01:47]} Qxg3 {[%emt 0:02:00]} 19. fxg3 {[%emt 0:00:05]} Bxe3+ {[%emt 0:00:29]} 20. Rxe3 {[%emt 0:00:02]} f5 {[%emt 0:00:21]} 21. exf5 {[%emt 0:00:05]} Rxf5 {[%emt 0:00:12]} 22. Bd3 {[%emt 0:00:19]} Rf6 {[%emt 0:00:11]} 23. Re4 {[%emt 0:03:19]} Ne7 {[%emt 0:07:43]} 24. Rb4 {[%emt 0:00:08]} Ra7 {[%emt 0:00:14]} 25. Be4 {[%emt 0:01:00]} c6 {[%emt 0:07:43]} 26. c4 {[%emt 0:02:55]} c5 {[%emt 0:01:33]} 27. Rb6 {[%emt 0:00:54]} Nc8 {[%emt 0:00:06]} 28. Rb3 {[%emt 0:00:04]} g6 {[%emt 0:01:14]} 29. Bf3 {[%emt 0:00:53]} Ne7 {[%emt 0:01:27]} 30. Bg4 {[%emt 0:00:51]} Nf5 {[%emt 0:00:09]} 31. Rf1 {[%emt 0:00:25]} Kg7 {[%emt 0:00:55]} 32. Rbf3 {[%emt 0:05:43]} Ra8 {[%emt 0:01:00]} 33. Bxf5 {[%emt 0:00:05]} gxf5 {[%emt 0:01:01]} 34. Rxf5 {[%emt 0:00:04]} Rxf5 {[%emt 0:00:24]} 35. Rxf5 {[%emt 0:00:05]} b5 {[%emt 0:00:52]} 36. axb6 {[%emt 0:02:51]} Rb8 {[%emt 0:01:33]} 37. Rf3 {[%emt 0:00:29]} Rxb6 {[%emt 0:00:08]} 38. b3 {[%emt 0:00:03]} Rb4 {[%emt 0:00:42]} 39. Kf2 {[%emt 0:01:12]} a5 {[%emt 0:00:04]} 40. g4 {[%emt 0:00:12]} a4 {[%emt 0:00:05]} 41. bxa4 {[%emt 0:00:04]} Rxa4 {[%emt 0:00:41]} 42. Rc3 {[%emt 0:00:04]} Kf6 {[%emt 0:01:21]} 43. Kf3 {[%emt 0:00:08]} Ra1 {[%emt 0:00:29]} 44. h4 {[%emt 0:00:56]} Rf1+ {[%emt 0:00:12]} 45. Ke2 {[%emt 0:00:37]} Rg1 {[%emt 0:01:00]} 46. Kf2 {[%emt 0:00:45]} Rd1 {[%emt 0:00:33]} 47. Rf3+ {[%emt 0:00:23]} Kg6 {[%emt 0:00:26]} 48. h5+ {[%emt 0:00:28]} Kg7 {[%emt 0:00:38]} 49. Rb3 {[%emt 0:02:25]} Rd4 {[%emt 0:01:47]} 50. Rb7+ {[%emt 0:00:06]} Kf6 {[%emt 0:01:20]} 51. Rd7 {[%emt 0:00:11]} Rxc4 {[%emt 0:03:17]} 52. Rxd6+ {[%emt 0:00:19]} Kg5 {[%emt 0:00:07]} 53. Rg6+ {[%emt 0:00:56]} Kf4 {[%emt 0:00:07]} 54. g5 {[%emt 0:03:14]} Rc2+ {[%emt 0:00:45]} 55. Kg1 {[%emt 0:00:05]} hxg5 {[%emt 0:09:51]} 56. h6 {[%emt 0:02:08]} 1-0